bitfinex-derivatives/quotes_ETHF0:USTF0_20250912
["timestamp","ask_amount","ask_price","bid_price","bid_amount"]
[1757653352559,0.2119,4522.1,4522.0,0.8195]
[1757653355362,1.09601915,4522.4,4522.0,0.5257]
[1757653355562,0.54107961,4522.3,4522.2,0.7028]
[1757653355765,1.09601915,4522.7,4522.2,0.409]
[1757653355957,1.25695002,4522.6,4522.5,0.8195]
[1757653357457,1.35696264,4523.4,4522.5,0.5257]
[1757653357458,1.17729072,4523.4,4522.5,0.5257]
[1757653357765,0.293,4523.8,4523.3,0.2938]
[1757653358067,0.293,4523.8,4523.7,0.7028]
[1757653358764,0.5049,4523.8,4523.7,0.7028]
[1757653359866,0.7159,4523.8,4523.7,0.409]
[1757653363260,0.7159,4523.8,4523.7,0.7028]
[1757653364557,0.7159,4523.8,4523.7,0.409]
[1757653364854,12.72725086,4533.5,4524.3,0.1991]
[1757653364855,0.7159,4524.4,4524.3,0.1991]
[1757653365059,0.7159,4524.4,4523.7,0.44405999]
[1757653365060,0.1164,4524.0,4523.9,0.1991]
[1757653365259,0.5393,4524.0,4523.9,0.409]
[1757653365762,0.8323,4524.0,4523.9,0.409]
[1757653366966,0.293,4524.0,4523.9,0.7028]
[1757653367155,1.28161942,4524.8,4523.9,0.7028]
[1757653367358,0.5049,4524.4,4524.3,0.409]
[1757653367662,0.7159,4524.4,4524.3,0.409]
[1757653368158,0.7159,4524.4,4524.3,0.1991]
[1757653368457,0.7159,4524.4,4524.0,0.2938]
[1757653368657,0.4229,4524.4,4523.7,0.5168]
[1757653368863,1.28161942,4524.8,4523.7,0.73784]
[1757653369654,0.293,4524.4,4523.7,0.73784]
[1757653369859,0.293,4524.4,4523.7,0.5168]
[1757653370063,1.28161942,4524.8,4523.7,0.5168]
[1757653370363,0.293,4524.4,4523.7,0.5168]
[1757653370855,0.7159,4524.4,4524.3,0.1991]
[1757653376264,0.7159,4524.4,4524.3,0.409]
[1757653379567,0.7159,4524.4,4524.3,0.1991]
[1757653379969,0.1163,4524.0,4523.9,0.2095]
[1757653380165,0.5327,4524.0,4523.7,0.223]
[1757653380571,0.3103,4523.9,4523.8,0.2095]
[1757653380774,0.7267,4523.9,4523.8,0.2095]
[1757653382274,0.7267,4523.9,4523.8,0.7173]
[1757653382972,0.7267,4523.9,4523.8,0.4096]
[1757653384965,0.4164,4523.9,4523.4,23.3]
[1757653385168,0.843,4523.5,4523.4,23.5095]
[1757653385375,0.843,4523.5,4523.4,23.9326]
[1757653386171,0.843,4523.5,4523.4,24.2403]
[1757653386378,0.3103,4523.5,4523.4,24.2403]
[1757653386577,0.3227,4524.0,4523.9,0.4096]
[1757653386777,0.3227,4524.0,4523.9,0.7173]
[1757653387187,0.843,4524.0,4523.9,0.7173]
[1757653387385,1.38109647,4524.0,4523.9,0.7173]
[1757653387884,1.38109647,4524.0,4523.9,0.4096]
[1757653389792,1.38109647,4524.0,4523.9,0.7173]
[1757653390995,1.38109647,4524.0,4523.9,0.4096]
[1757653391198,0.3103,4524.0,4523.9,0.7173]
[1757653391690,0.5167,4524.0,4523.9,0.7173]
[1757653392496,0.633,4524.0,4523.9,0.7173]
[1757653392695,0.843,4524.0,4523.9,0.7173]
[1757653393589,0.1163,4523.5,4523.4,23.3]
[1757653393893,0.843,4523.5,4523.4,23.7325]
[1757653394295,0.843,4523.5,4523.4,23.3]
[1757653394489,0.5203,4523.3,4523.2,0.223]
[1757653394794,0.7267,4523.3,4523.2,0.223]
[1757653396993,0.7267,4523.3,4522.4,23.3]
[1757653396994,0.843,4522.5,4522.4,23.7096]
[1757653397296,0.843,4522.5,4522.4,23.9326]
[1757653397697,0.1163,4523.5,4522.4,23.9326]
[1757653397698,0.5327,4523.5,4523.4,0.4096]
[1757653397997,0.5327,4523.5,4523.4,0.7173]
[1757653398188,0.843,4523.5,4523.4,0.7173]
[1757653398391,0.843,4523.5,4523.4,0.2095]
[1757653398593,0.843,4523.0,4522.9,0.4325]
[1757653399196,0.843,4523.0,4522.9,0.6326]
[1757653401101,0.843,4523.0,4522.9,0.223]
[1757653402303,0.4164,4522.8,4522.7,0.4325]
[1757653402498,0.7267,4522.8,4522.7,0.4325]
[1757653403005,0.7267,4522.8,4522.7,0.2095]
[1757653403302,0.843,4522.5,4522.4,23.7096]
[1757653403498,0.843,4522.5,4522.4,24.2403]
[1757653404995,0.5167,4522.5,4522.4,24.2403]
[1757653405200,0.3103,4522.5,4522.4,24.2403]
[1757653405397,0.1163,4523.0,4522.4,24.2403]
[1757653405601,0.3103,4523.1,4523.0,0.7173]
[1757653405905,0.5167,4523.4,4523.3,0.7173]
[1757653406197,0.7267,4523.4,4523.3,0.7173]
[1757653406403,0.7267,4523.4,4523.3,0.2095]
[1757653406703,0.7267,4523.4,4523.3,0.4096]
[1757653407096,0.7267,4523.4,4523.3,0.7173]
[1757653407300,0.3103,4523.9,4523.4,0.3077]
[1757653407602,0.3103,4523.9,4523.8,0.7173]
[1757653407804,0.7194,4523.9,4523.8,0.7173]
[1757653408005,0.7194,4523.9,4523.8,0.4096]
[1757653408209,0.7194,4523.9,4523.8,0.7006]
[1757653408698,0.1163,4525.0,4523.8,0.7006]
[1757653408893,1.22495148,4524.4,4524.3,0.4105]
[1757653409594,0.6885,4524.4,4524.3,0.7015]
[1757653410402,0.4858,4524.4,4524.3,0.7015]
[1757653411099,0.6885,4524.4,4524.3,0.4105]
[1757653411299,0.6885,4524.4,4524.3,0.1981]
[1757653411498,0.6885,4524.4,4523.9,0.514]
[1757653412001,0.2931,4524.3,4524.2,0.1981]
[1757653412206,0.6885,4524.3,4524.2,0.1981]
[1757653413103,0.8102,4524.0,4523.9,0.4211]
[1757653413505,0.8102,4524.0,4523.9,0.223]
[1757653413805,0.8102,4524.0,4523.5,0.291]
[1757653414008,0.8102,4523.5,4523.4,23.7105]
[1757653414202,0.8102,4523.5,4523.4,23.9335]
[1757653414410,0.8102,4523.5,4523.4,24.2245]
[1757653414604,0.8102,4523.5,4523.4,23.9335]
[1757653416413,0.1217,4524.0,4523.4,24.2245]
[1757653416615,0.2931,4524.0,4523.9,1.98311942]
[1757653417111,0.8102,4524.0,4523.9,0.1981]
[1757653418308,0.8102,4524.0,4523.9,0.4105]
[1757653418608,0.8102,4524.0,4523.8,0.223]
[1757653418609,0.2931,4524.4,4523.8,0.223]
[1757653418804,0.4858,4524.4,4524.3,0.7015]
[1757653419306,0.6885,4524.4,4524.3,0.7015]
[1757653419710,0.6885,4524.4,4524.3,0.4105]
[1757653423307,0.4858,4524.4,4524.3,1.79639367]
[1757653423511,0.1163,4525.0,4524.4,0.291]
[1757653423709,0.5117,4525.0,4524.9,0.1981]
[1757653424108,0.8048,4525.0,4524.9,0.1981]
[1757653425011,0.8048,4525.0,4524.9,1.50539367]
[1757653425316,0.6021,4525.0,4524.9,1.79639367]
[1757653425821,0.6021,4525.0,4524.9,25.09639367]
[1757653426018,0.4858,4525.0,4524.9,25.09639367]
[1757653426318,0.6885,4525.4,4525.3,0.4105]
[1757653426515,0.6885,4525.4,4525.3,0.7015]
[1757653426705,0.6885,4525.4,4525.3,0.4105]
[1757653429109,0.6885,4525.4,4525.3,0.7015]
[1757653430217,0.6885,4525.4,4525.3,0.4105]
[1757653430721,0.6885,4525.4,4525.3,0.1981]
[1757653431324,0.6885,4525.4,4525.3,0.4105]
[1757653433625,0.6075,4525.5,4525.4,0.7015]
[1757653433918,0.8102,4525.5,4525.4,0.4105]
[1757653435822,0.8102,4525.5,4525.4,0.1981]
[1757653438727,0.8102,4525.5,4525.3,0.223]
[1757653440420,0.8102,4525.5,4525.4,0.1922]
[1757653440624,0.8102,4525.5,4525.4,0.6944]
[1757653441634,0.4858,4525.5,4525.4,0.6944]
[1757653442132,0.6076,4525.5,4525.4,0.6944]
[1757653442724,0.1218,4525.0,4524.9,23.3]
[1757653442929,0.6451,4525.0,4524.9,25.53327367]
[1757653443131,0.5233,4525.0,4524.9,25.31229367]
[1757653443831,0.3185,4525.0,4524.9,25.31229367]
[1757653447035,0.3185,4525.4,4525.3,0.6944]
[1757653447237,0.3185,4525.4,4525.3,2.01229367]
[1757653450239,0.7239,4525.4,4525.3,0.9174]
[1757653450438,0.7239,4525.4,4525.3,1.70589367]
[1757653451133,0.7239,4525.4,4525.3,2.01229367]
[1757653451334,0.7239,4525.4,4525.3,0.223]
[1757653451940,0.7239,4525.4,4524.9,24.70129367]
[1757653452141,0.1218,4525.5,4524.9,24.70129367]
[1757653452142,0.8457,4525.0,4524.9,24.78289367]
[1757653452343,0.8457,4525.0,4524.9,25.08929367]
[1757653452543,0.8457,4525.0,4524.9,25.31229367]
[1757653453246,0.8457,4525.0,4524.9,25.08929367]
[1757653453451,0.8457,4525.0,4524.9,25.31229367]
[1757653454249,0.1218,4525.5,4524.9,25.31229367]
[1757653454543,0.6451,4525.5,4525.4,1.78929367]
[1757653454746,0.6451,4525.5,4525.4,2.01229367]
[1757653455944,0.8457,4525.5,4525.4,2.01229367]
[1757653456646,0.8457,4525.5,4525.4,0.4152]
[1757653458656,0.8457,4525.5,4525.4,0.9174]
[1757653459251,0.8457,4525.5,4525.4,0.4152]
[1757653459553,0.8457,4525.5,4525.4,0.223]
[1757653460855,0.5272,4525.5,4525.2,0.223]
[1757653461056,0.4054,4525.3,4525.2,0.4152]
[1757653461250,0.7239,4525.3,4525.2,0.4152]
[1757653463054,0.7239,4525.3,4525.2,0.9174]
[1757653464361,0.1218,4525.0,4524.4,1.96813426]
[1757653464561,0.3185,4524.9,4524.5,1.31789367]
[1757653464751,0.4054,4524.7,4524.6,23.7152]
[1757653464951,0.7239,4524.7,4524.6,23.688]
[1757653465152,0.7239,4524.7,4524.6,23.523]
[1757653465854,0.7239,4524.7,4524.2,1.09489367]
[1757653466057,0.7239,4524.3,4524.2,1.28709367]
[1757653466254,0.7239,4524.3,4524.2,1.51009367]
[1757653466458,0.7239,4524.3,4524.2,24.81009367]
[1757653467369,0.7239,4524.3,4524.2,23.4922]
[1757653467557,0.7239,4524.3,4524.2,24.81009367]
[1757653469358,0.7239,4524.3,4524.2,23.4922]
[1757653469565,0.7239,4524.3,4523.5,1.09489367]
[1757653469759,0.8382,4523.5,4523.4,0.4099]
[1757653469956,0.8382,4523.5,4523.4,0.2118]
[1757653470156,0.8382,4523.5,4523.4,24.0031]
[1757653471760,0.8382,4523.5,4523.4,23.7099]
[1757653472960,0.8382,4523.5,4523.4,24.0031]
[1757653473265,0.8382,4523.5,4523.4,0.7031]
[1757653475566,0.5164,4523.5,4523.4,0.7031]
[1757653475764,0.1242,4524.0,4523.5,0.2932]
[1757653475964,0.1242,4524.0,4523.9,1.79799367]
[1757653475965,0.3272,4524.0,4523.9,1.79799367]
[1757653476465,0.6406,4524.0,4523.9,1.79799367]
[1757653476654,0.8382,4524.0,4523.9,1.79799367]
[1757653477662,0.3134,4524.0,4523.9,1.79799367]
[1757653478062,0.3134,4524.4,4524.0,0.2932]
[1757653478267,0.3134,4524.4,4524.3,1.79799367]
[1757653478468,0.3134,4524.4,4524.3,2.02099367]
[1757653479466,0.5164,4524.4,4524.3,2.02099367]
[1757653481568,0.5164,4524.4,4524.3,25.32099367]
[1757653482370,0.5164,4524.4,4524.3,24.2261]
[1757653483262,0.3134,4524.4,4524.3,24.2261]
[1757653484372,0.714,4524.4,4524.3,24.2261]
[1757653484675,0.714,4524.4,4524.3,23.9329]
[1757653484968,0.5164,4524.4,4524.3,24.2261]
[1757653485172,0.5164,4524.4,4524.3,0.9261]
[1757653485867,0.203,4524.9,4524.8,0.4099]
[1757653486068,0.93501,4524.9,4524.8,0.4099]
[1757653486467,0.714,4524.9,4524.8,0.7031]
[1757653486971,0.714,4524.9,4524.8,0.4099]
[1757653488070,0.714,4524.9,4524.8,0.7031]
[1757653488968,0.5164,4524.9,4524.8,0.7031]
[1757653491367,0.3134,4524.9,4524.8,0.7031]
[1757653495873,0.714,4524.9,4524.8,0.4099]
[1757653496074,0.714,4524.9,4524.8,0.2118]
[1757653497577,0.714,4524.9,4524.8,0.4348]
[1757653498473,0.714,4524.9,4524.8,0.6329]
[1757653498675,0.714,4524.9,4524.8,0.9289]
[1757653499780,0.714,4524.9,4524.8,0.6329]
[1757653500171,0.714,4524.9,4524.8,0.4099]
[1757653500375,0.714,4524.9,4524.7,0.223]
[1757653501280,0.699,4524.3,4524.2,23.5057]
[1757653501474,0.699,4524.3,4524.2,23.7287]
[1757653501674,0.699,4524.3,4524.2,23.5057]
[1757653501890,0.699,4524.3,4524.2,23.7287]
[1757653503482,0.699,4524.3,4524.2,24.2279]
[1757653503679,0.699,4524.3,4524.2,23.9319]
[1757653504270,0.699,4524.3,4524.2,24.2279]
[1757653507186,0.699,4524.3,4524.2,24.0049]
[1757653507480,0.699,4524.3,4524.2,24.2279]
[1757653510083,0.2935,4524.3,4524.2,24.2279]
[1757653510480,0.1242,4525.0,4524.3,0.296]
[1757653510685,0.1242,4525.0,4524.2,23.523]
[1757653510686,0.5297,4525.0,4524.9,0.2057]
[1757653511081,1.3601315,4525.0,4524.9,0.2057]
[1757653511289,1.5811315,4525.0,4524.5,0.296]
[1757653511490,0.2086,4524.6,4524.5,0.7049]
[1757653511684,0.5021,4524.6,4524.5,0.7049]
[1757653512492,0.699,4524.6,4524.5,0.7049]
[1757653513574,0.699,4524.6,4523.2,1.96813426]
[1757653513575,0.4055,4523.7,4523.6,0.6319]
[1757653513783,0.699,4523.7,4523.6,0.2057]
[1757653513986,0.5247,4523.5,4523.4,0.4287]
[1757653514182,0.8182,4523.5,4523.4,0.4287]
[1757653514490,0.8182,4523.5,4523.4,0.6319]
[1757653514682,0.8182,4523.5,4523.4,0.9279]
[1757653516487,0.8182,4523.5,4523.4,0.6319]
[1757653517088,0.8182,4523.5,4523.4,0.4287]
[1757653517392,0.5021,4522.9,4522.8,0.7049]
[1757653517586,0.699,4522.9,4522.8,0.4089]
[1757653517779,0.699,4522.9,4522.8,23.9319]
[1757653519196,0.1192,4522.5,4522.4,0.2057]
[1757653519495,0.5247,4522.5,4522.4,0.4287]
[1757653519892,0.8182,4522.5,4522.4,0.4287]
[1757653521884,0.8182,4522.5,4522.4,0.223]
[1757653522084,0.4127,4522.0,4521.9,31.835]
[1757653522284,0.8182,4522.0,4521.9,0.6319]
[1757653522490,0.8182,4522.0,4521.9,24.2279]
[1757653523197,0.5021,4522.0,4521.9,24.2279]
[1757653523394,0.1192,4522.5,4522.4,0.4089]
[1757653523698,0.2935,4522.5,4522.4,0.7049]
[1757653523900,0.5021,4522.5,4522.4,0.7049]
[1757653524792,0.1192,4523.0,4522.4,0.4089]
[1757653525099,0.92011,4522.9,4522.8,0.4089]
[1757653525402,0.92011,4522.9,4522.8,0.2057]
[1757653525599,0.699,4522.9,4522.8,0.2057]
[1757653525794,0.699,4522.9,4522.5,0.223]
[1757653530101,0.699,4522.9,4522.8,0.2057]
[1757653532707,0.699,4522.9,4522.8,0.2057]
[1757653534805,0.699,4522.9,4522.4,0.3025]
[1757653535007,0.5247,4522.5,4522.4,0.7011]
[1757653535207,0.8314,4522.5,4522.4,0.7011]
[1757653535906,0.8314,4522.5,4522.4,0.3986]
[1757653536098,0.8314,4522.5,4522.4,0.1964]
[1757653536298,0.8314,4522.5,4522.4,0.3986]
[1757653536605,0.8314,4522.5,4522.4,0.7011]
[1757653536804,0.4039,4523.4,4523.3,0.1964]
[1757653537008,0.3067,4523.9,4523.3,0.3986]
[1757653537208,0.3067,4523.9,4523.1,0.223]
[1757653537209,0.3067,4524.4,4523.9,0.3025]
[1757653537398,0.8314,4524.5,4524.4,0.1964]
[1757653537703,0.3067,4524.9,4524.4,1.67946991]
[1757653537902,0.6307,4525.0,4524.9,0.7011]
[1757653538101,0.5099,4525.0,4524.9,0.7011]
[1757653539307,0.6307,4525.0,4524.9,0.7011]
[1757653539810,0.6307,4525.0,4524.4,1.28086991]
[1757653539811,0.1208,4524.5,4524.4,0.1964]
[1757653540005,0.5247,4524.5,4524.4,0.1964]
[1757653540401,0.8314,4524.5,4524.4,0.1964]
[1757653540597,0.1208,4524.0,4523.8,0.3025]
[1757653540898,0.8314,4524.0,4523.9,0.4194]
[1757653541500,0.3067,4523.9,4523.0,0.3025]
[1757653541802,0.7106,4523.1,4523.0,0.3986]
[1757653541997,0.5247,4523.0,4522.9,0.223]
[1757653542596,0.8314,4523.0,4522.9,0.4194]
[1757653543401,0.8314,4523.0,4522.9,0.6216]
[1757653543905,0.8314,4523.0,4522.9,0.9241]
[1757653544522,0.8314,4523.0,4522.9,2.01954594]
[1757653547213,0.5099,4523.0,4522.9,2.01954594]
[1757653548013,0.3067,4523.0,4522.9,2.01954594]
[1757653548205,0.1208,4524.0,4522.9,2.01954594]
[1757653548206,0.1208,4524.0,4523.4,0.7011]
[1757653548408,0.1208,4524.0,4523.8,1.79654594]
[1757653548409,0.5099,4523.9,4523.8,1.79654594]
[1757653548902,0.5099,4523.9,4523.8,25.09654594]
[1757653549719,0.7106,4523.9,4523.8,24.79404594]
[1757653550619,0.5099,4523.9,4523.8,1.79654594]
[1757653550812,0.3067,4524.4,4523.8,1.49404594]
[1757653551116,0.7106,4524.4,4524.3,0.1964]
[1757653552018,0.8314,4524.0,4523.9,0.3986]
[1757653552417,0.8314,4524.0,4523.1,0.3025]
[1757653552616,0.8314,4524.0,4523.6,0.223]
[1757653553012,0.5247,4524.0,4523.7,23.3]
[1757653553211,0.7106,4523.8,4523.7,23.3]
[1757653553407,0.7106,4523.8,4523.6,0.223]
[1757653553617,0.7106,4523.8,4523.4,1.09544594]
[1757653553814,0.8314,4523.5,4522.7,0.3025]
[1757653554115,0.8314,4523.0,4522.9,0.1964]
[1757653554914,0.5099,4522.1,4522.0,32.1495]
[1757653555104,0.5099,4522.1,4522.0,32.59361999]
[1757653555720,0.5099,4522.1,4522.0,32.3725]
[1757653557721,0.5099,4522.1,4522.0,55.6725]
[1757653560120,0.3067,4522.1,4522.0,55.6725]
[1757653560722,0.6246,4522.5,4522.4,0.6934]
[1757653560915,0.6246,4522.5,4522.4,2.01184594]
[1757653561116,0.8344,4522.5,4522.4,1.72274594]
[1757653561422,0.8344,4522.5,4522.4,2.01184594]
[1757653564121,0.3064,4522.5,4522.4,2.01184594]
[1757653564424,0.3064,4522.9,4522.8,0.6934]
[1757653564723,0.3064,4522.9,4522.8,25.08884594]
[1757653564724,0.5038,4522.9,4522.8,25.08884594]
[1757653565224,0.5038,4522.9,4522.8,1.78884594]
[1757653567036,0.7136,4522.9,4522.8,0.4043]
[1757653567439,0.7136,4522.9,4522.8,0.2059]
[1757653567640,0.7136,4522.9,4522.8,0.223]
[1757653567939,0.7136,4522.9,4522.8,0.4289]
[1757653571138,0.7136,4522.9,4522.8,0.2059]
[1757653571940,0.7136,4522.9,4522.5,0.223]
[1757653572138,0.1206,4522.5,4522.4,0.2059]
[1757653572436,0.5278,4522.0,4521.9,0.4043]
[1757653572632,0.5278,4522.0,4521.9,0.6934]
[1757653572832,0.8342,4522.0,4521.9,23.9934]
[1757653573028,0.5038,4522.0,4521.9,23.9934]
[1757653573339,0.3064,4522.4,4522.3,0.4043]
[1757653573540,0.3064,4522.4,4522.3,2.01184594]
[1757653574636,0.3064,4522.9,4522.4,0.2891]
[1757653574837,0.5038,4522.9,4522.8,1.78884594]
[1757653575045,0.7136,4522.9,4522.8,0.4043]
[1757653575944,0.7136,4522.9,4522.8,0.2059]
[1757653576152,0.7136,4522.9,4522.4,0.2891]
[1757653576153,0.7136,4522.9,4522.6,0.223]
[1757653576942,0.7136,4522.9,4522.8,0.2059]
[1757653578345,0.7136,4522.9,4522.8,0.4043]
[1757653579443,0.7136,4522.9,4522.8,0.2059]
[1757653579649,0.7136,4522.9,4522.6,0.223]
[1757653581037,0.7136,4522.9,4522.8,0.2059]
[1757653581444,0.1208,4523.5,4522.9,0.2891]
[1757653581743,0.7136,4523.4,4523.3,0.2059]
[1757653581939,0.1206,4523.0,4522.9,0.2059]
[1757653582149,0.8342,4523.0,4522.9,0.2059]
[1757653585250,0.3064,4523.0,4522.9,1.78884594]
[1757653585445,0.3182,4523.5,4523.4,0.4043]
[1757653585643,0.3182,4523.5,4523.4,0.6934]
[1757653585949,0.6246,4523.5,4523.4,0.6934]
[1757653586353,0.8344,4523.5,4523.4,0.4043]
[1757653586649,0.8344,4523.5,4523.4,0.2059]
[1757653587550,0.528,4523.5,4522.9,1.09544594]
[1757653587750,0.6172,4523.0,4522.9,1.79124594]
[1757653587952,0.6172,4523.0,4522.9,25.09124594]
[1757653588743,0.82,4523.0,4522.9,23.6987]
[1757653589446,0.82,4523.0,4522.9,0.6958]
[1757653589651,0.2988,4523.0,4522.9,0.6958]
[1757653589840,0.4907,4523.0,4522.9,0.6958]
[1757653590649,0.2988,4523.0,4522.9,1.79124594]
[1757653590951,0.6115,4523.5,4523.4,0.6958]
[1757653591549,0.8143,4523.5,4523.4,0.3987]
[1757653591753,0.8143,4523.5,4523.4,0.205]
[1757653594258,0.8143,4523.5,4523.0,0.2971]
[1757653595352,0.5212,4523.0,4522.9,0.205]
[1757653595653,0.82,4523.0,4522.9,0.205]
[1757653597159,0.2988,4522.9,4522.8,23.3]
[1757653597360,0.6935,4522.9,4522.8,23.523]
[1757653597861,0.6935,4522.9,4522.8,23.728]
[1757653598353,0.2988,4522.9,4522.8,0.9188]
[1757653598551,0.2988,4523.4,4522.8,0.6217]
[1757653598749,0.8143,4523.5,4523.4,0.205]
[1757653599360,0.8143,4523.5,4523.4,0.6958]
[1757653600951,0.8143,4523.5,4523.4,0.3987]
[1757653601154,0.8143,4523.5,4523.4,0.205]
[1757653601454,0.3947,4523.2,4523.1,0.6217]
[1757653601657,0.6935,4523.2,4523.1,0.6217]
[1757653602259,0.5155,4523.5,4523.4,0.3987]
[1757653602854,0.8143,4523.5,4523.4,0.3987]
[1757653603560,0.8143,4523.5,4523.1,0.223]
[1757653608865,0.1208,4523.5,4523.4,0.3987]
[1757653609059,0.4196,4523.5,4523.4,0.6958]
[1757653609260,0.6115,4523.5,4523.4,0.6958]
[1757653609461,0.8143,4523.5,4523.4,0.3987]
[1757653610464,0.2988,4523.5,4523.4,0.6958]
[1757653611467,0.4907,4523.5,4523.4,0.6958]
[1757653612263,0.82,4523.5,4523.4,0.3987]
[1757653612465,0.82,4523.5,4523.4,0.205]
[1757653612762,0.2988,4523.4,4522.7,23.3]
[1757653612959,0.6935,4522.9,4522.8,0.89547806]
[1757653613265,0.6935,4522.9,4522.8,0.67247806]
[1757653613469,0.6935,4522.9,4522.8,0.49677806]
[1757653613858,0.6935,4522.9,4522.8,0.70177806]
[1757653614059,0.4907,4522.9,4522.8,1.19257806]
[1757653616864,0.6935,4522.9,4522.8,0.27377806]
[1757653617364,0.6935,4522.9,4522.8,0.47877806]
[1757653617761,0.6935,4522.9,4522.8,0.27377806]
[1757653620172,0.6935,4522.9,4522.8,0.48647806]
[1757653620965,0.6935,4522.9,4522.8,0.27377806]
[1757653621468,0.712,4522.2,4522.1,23.7357]
[1757653621665,0.712,4522.2,4522.1,24.0418]
[1757653622365,0.712,4522.2,4522.1,23.8188]
[1757653622573,0.712,4522.2,4522.1,24.0418]
[1757653622774,0.712,4522.2,4522.1,0.5188]
[1757653623280,0.712,4522.2,4522.1,0.7198]
[1757653624370,0.3039,4522.9,4522.2,0.3061]
[1757653624570,0.2112,4522.5,4522.4,0.7198]
[1757653624770,0.5151,4522.5,4522.4,0.7198]
[1757653627974,0.712,4522.5,4522.4,0.7198]
[1757653631572,0.1265,4523.0,4522.4,0.7198]
[1757653631777,0.5346,4523.0,4522.9,0.5188]
[1757653632179,0.8385,4523.0,4522.9,0.5188]
[1757653634577,0.8385,4523.0,4522.6,0.3061]
[1757653634974,0.8385,4523.0,4522.3,0.223]
[1757653635571,0.8385,4523.0,4522.4,0.3061]
[1757653642483,0.5151,4522.5,4522.4,0.7198]
[1757653643780,0.712,4522.5,4522.4,0.7198]
[1757653652493,0.8319,4522.5,4522.4,0.7198]
[1757653652696,0.8319,4522.5,4522.4,0.9428]
[1757653654207,0.712,4522.5,4522.4,0.9428]
[1757653657100,0.712,4522.5,4522.4,0.7198]
[1757653657308,0.712,4522.5,4522.4,0.9428]
[1757653657508,0.8319,4522.5,4522.4,0.9428]
[1757653666308,0.8319,4522.5,4522.4,0.2127]
[1757653666513,0.8319,4522.5,4522.4,0.4357]
[1757653667013,0.8319,4522.5,4522.4,0.7543]
[1757653669320,0.8319,4522.5,4522.4,0.5313]
[1757653669816,0.8319,4522.5,4522.4,0.7543]
[1757653670016,0.8319,4522.5,4522.4,0.5313]
[1757653670217,0.8319,4522.5,4522.4,0.7543]
[1757653672624,0.712,4522.5,4522.4,0.9517]
[1757653677123,0.712,4522.5,4522.4,0.7287]
[1757653677423,0.712,4522.5,4522.4,0.9517]
[1757653679518,0.712,4522.5,4522.4,0.7287]
[1757653679718,0.8369,4522.5,4522.4,0.9517]
[1757653680923,0.8369,4522.5,4522.4,0.7287]
[1757653681125,0.8369,4522.5,4522.4,0.9517]
[1757653683026,0.712,4522.5,4522.4,0.9517]
[1757653683326,0.5151,4522.5,4522.4,0.9517]
[1757653683726,0.713,4522.5,4522.4,0.9517]
[1757653684421,0.2116,4523.0,4522.9,0.1983]
[1757653684614,0.2996,4523.4,4523.0,0.1268]
[1757653684822,0.93018,4523.4,4523.3,0.7109]
[1757653685727,0.7091,4523.4,4523.3,0.7109]
[1757653689122,0.7091,4523.4,4522.8,0.223]
[1757653689329,0.7091,4522.9,4522.8,0.4213]
[1757653689528,0.7091,4522.9,4522.8,0.727]
[1757653690027,0.4095,4522.9,4522.5,0.5287]
[1757653690230,0.7091,4522.6,4522.5,0.727]
[1757653691925,0.7091,4522.6,4522.5,0.504]
[1757653695431,0.7091,4522.6,4522.5,0.7109]
[1757653696833,0.7091,4522.6,4522.5,0.8377]
[1757653698636,0.5112,4522.6,4522.5,1.93359155]
[1757653699428,0.2116,4522.6,4522.5,1.93359155]
[1757653699732,0.5112,4522.9,4522.8,0.4052]
[1757653699932,0.5112,4522.9,4522.8,0.7109]
[1757653700733,0.7091,4522.9,4522.8,0.7109]
[1757653701438,0.7091,4522.9,4522.8,0.504]
[1757653702437,0.7091,4522.9,4522.0,24.51459155]
[1757653702438,0.7091,4522.9,4522.3,0.223]
[1757653702644,0.4095,4522.4,4522.3,0.727]
[1757653702939,0.7091,4522.4,4522.3,0.9339]
[1757653712536,0.7091,4522.4,4522.3,0.7109]
[1757653712743,1.80499155,4522.4,4521.6,0.3047]
[1757653714947,0.5071,4521.8,4521.7,0.7029]
[1757653717255,0.2993,4522.4,4521.8,0.3047]
[1757653717555,0.92414,4522.4,4522.3,0.7029]
[1757653717755,0.703,4522.4,4522.3,0.7029]
[1757653718353,0.2078,4522.9,4522.8,0.3982]
[1757653718654,0.4037,4522.9,4522.8,1.79879155]
[1757653718850,0.703,4522.9,4522.8,1.79879155]
[1757653719055,0.703,4522.9,4522.8,0.7029]
[1757653720657,0.703,4523.4,4523.3,0.5094]
[1757653720860,1.23926592,4523.4,4523.3,0.5094]
[1757653721051,1.23926592,4523.4,4523.3,0.2047]
[1757653723251,1.23926592,4523.4,4523.3,0.7029]
[1757653723551,0.1206,4524.0,4523.4,0.3047]
[1757653723859,0.8236,4524.0,4523.9,0.5094]
[1757653724053,1.35973982,4524.0,4523.9,0.5094]
[1757653724554,1.35973982,4524.0,4523.9,0.27130686]
[1757653725559,1.35973982,4524.0,4523.9,0.27123493]
[1757653725762,2.45563137,4524.0,4523.9,0.27123493]
[1757653726456,1.35973982,4524.0,4523.9,0.27123493]
[1757653728765,1.35973982,4524.0,4523.9,0.47593493]
[1757653728958,1.35973982,4524.0,4523.9,0.27123493]
[1757653733368,0.8236,4524.0,4523.9,0.27123493]
[1757653734064,6.54923973,4524.0,4523.9,0.27123493]